fUSD/lending_fUSD_20241227
["ID","MTS","AMOUNT","RATE_DAILY","PERIOD"]
[346877840,1735337447633,-637.02,0.00010737,2]
[346877841,1735337447643,-1129.03,0.00010737,2]
[346877842,1735337447653,-7183.04,0.00010737,2]
[346877843,1735337447662,-500.0,0.00010737,2]
[346877844,1735337447671,-696.32,0.00010737,2]
[346877845,1735337447681,-614.82,0.00010737,2]
[346877846,1735337447691,-500.0,0.00010737,2]
[346877847,1735337447700,-3053.31,0.00010737,2]
[346877848,1735337447710,-500.0,0.00010737,2]
[346877849,1735337447720,-1253.84,0.00010737,2]
[346877850,1735337447730,-718.3,0.00010737,2]
[346877851,1735337447740,-500.0,0.00010737,2]
[346877852,1735337447749,-4062.98,0.00010737,2]
[346877853,1735337447759,-500.0,0.00010737,2]
[346877854,1735337447768,-1170.25,0.00010737,2]
[346877855,1735337447779,-1248.32,0.00010737,2]
[346877856,1735337447789,-1298.59,0.00010737,2]
[346877857,1735337447798,-751.3,0.00010737,2]
[346877858,1735337447807,-848.02,0.00010737,2]
[346877859,1735337447817,-1580.69,0.00010737,2]
[346877860,1735337447827,-539.84,0.00010737,2]
[346877861,1735337447837,-918.89,0.00010737,2]
[346877862,1735337447847,-500.0,0.00010737,2]
[346877863,1735337447857,-964.9,0.00010737,2]
[346877864,1735337447867,-524.03,0.00010737,2]
[346877865,1735337447877,-801.09,0.00010737,2]
[346877866,1735337447887,-500.0,0.00010737,2]
[346877867,1735337447896,-660.9,0.00010737,2]
[346877868,1735337447906,-500.0,0.00010737,2]
[346877869,1735337447915,-500.0,0.00010737,2]
[346877870,1735337447925,-500.0,0.00010737,2]
[346877871,1735337447939,-500.0,0.00010737,2]
[346877872,1735337447948,-500.0,0.00010737,2]
[346877873,1735337447957,-500.0,0.00010737,2]
[346877874,1735337447967,-949.56,0.00010737,2]
[346877875,1735337447977,-500.0,0.00010737,2]
[346877876,1735337447988,-500.0,0.00010737,2]
[346877877,1735337447997,-500.0,0.00010737,2]
[346877878,1735337448007,-500.0,0.00010738,2]
[346877879,1735337448018,-500.0,0.00010738,2]
[346877880,1735337448027,-500.0,0.00010738,2]
[346877881,1735337448036,-500.0,0.00010738,2]
[346877882,1735337448046,-500.0,0.00010738,2]
[346877883,1735337448056,-500.0,0.00010738,2]
[346877884,1735337448066,-500.0,0.00010738,2]
[346877885,1735337448076,-500.0,0.00010738,2]
[346877886,1735337448086,-500.0,0.00010738,2]
[346877887,1735337448096,-756.82,0.00010738,2]
[346877888,1735337448105,-500.0,0.00010738,2]
[346877889,1735337448115,-500.0,0.00010738,2]
[346877890,1735337448124,-583.38897155,0.00010738,2]
[346877891,1735337448134,-964.3,0.00010738,2]
[346877892,1735337448144,-500.0,0.00010738,2]
[346877893,1735337448154,-500.0,0.00010738,2]
[346877894,1735337448163,-500.0,0.00010738,2]
[346877895,1735337448173,-1057.65,0.00010738,2]
[346877896,1735337448182,-500.0,0.00010738,2]
[346877897,1735337448192,-500.0,0.00010738,2]
[346877898,1735337448202,-500.0,0.00010738,2]
[346877899,1735337448212,-898.76,0.00010738,2]
[346877900,1735337448221,-500.0,0.00010738,2]
[346877901,1735337448231,-500.0,0.00010738,2]
[346877902,1735337448241,-500.0,0.00010738,2]
[346877903,1735337448251,-500.0,0.00010738,2]
[346877904,1735337448261,-500.0,0.00010738,2]
[346877905,1735337448271,-1586.4,0.00010738,2]
[346877906,1735337448281,-500.0,0.00010738,2]
[346877907,1735337448291,-500.0,0.00010738,2]
[346877908,1735337448301,-500.0,0.00010738,2]
[346877909,1735337448311,-500.0,0.00010738,2]
[346877910,1735337448320,-500.0,0.00010738,2]
[346877911,1735337448330,-530.23163139,0.00010738,2]
[346877912,1735337448340,-1087.21,0.00010738,2]
[346877913,1735337448351,-500.0,0.00010738,2]
[346877914,1735337448359,-500.0,0.00010738,2]
[346877915,1735337448369,-500.0,0.00010738,2]
[346877916,1735337448378,-500.0,0.00010738,2]
[346877917,1735337448387,-500.0,0.00010738,2]
[346877918,1735337448396,-500.0,0.00010738,2]
[346877919,1735337448406,-500.0,0.00010738,2]
[346877920,1735337448415,-500.0,0.00010738,2]
[346877921,1735337448424,-500.0,0.00010738,2]
[346877922,1735337448435,-4606.94,0.00010738,2]
[346877923,1735337448446,-500.0,0.00010738,2]
[346877924,1735337448455,-500.0,0.00010738,2]
[346877925,1735337448464,-500.0,0.00010738,2]
[346877926,1735337448473,-709.78,0.00010738,2]
[346877927,1735337448483,-500.0,0.00010738,2]
[346877928,1735337448493,-500.0,0.00010738,2]
[346877929,1735337448502,-500.0,0.00010738,2]
[346877930,1735337448512,-500.0,0.00010738,2]
[346877931,1735337448521,-500.0,0.00010738,2]
[346877932,1735337448531,-500.0,0.00010738,2]
[346877933,1735337448540,-500.0,0.00010738,2]
[346877934,1735337448550,-521.21,0.00010738,2]
[346877935,1735337448559,-634.51,0.00010738,2]
[346877936,1735337448568,-500.0,0.00010738,2]
[346877937,1735337448577,-3244.22,0.00010738,2]
[346877938,1735337448586,-453.51210894,0.00010738,2]
[346877939,1735337448596,-500.0,0.00010738,2]
[346877940,1735337448606,-500.0,0.00010738,2]
[346877941,1735337448615,-500.0,0.00010738,2]
[346877942,1735337448625,-500.0,0.00010738,2]
[346877943,1735337448634,-500.0,0.00010738,2]
[346877944,1735337448643,-500.0,0.00010738,2]
[346877945,1735337448653,-500.0,0.00010738,2]
[346877946,1735337448663,-500.0,0.00010738,2]
[346877947,1735337448672,-500.0,0.00010738,2]
[346877948,1735337448681,-500.0,0.00010738,2]
[346877949,1735337448690,-688.38,0.00010738,2]
[346877950,1735337448699,-500.0,0.00010738,2]
[346877951,1735337448707,-500.0,0.00010738,2]
[346877952,1735337448717,-500.0,0.00010738,2]
[346877953,1735337448727,-500.0,0.00010738,2]
[346877954,1735337448738,-500.0,0.00010738,2]
[346877955,1735337448748,-500.0,0.00010738,2]
[346877956,1735337448758,-500.0,0.00010738,2]
[346877957,1735337448767,-500.0,0.00010738,2]
[346877958,1735337448778,-500.0,0.00010738,2]
[346877959,1735337448787,-500.0,0.00010738,2]
[346877960,1735337448798,-500.0,0.00010738,2]
[346877961,1735337448808,-510.38,0.00010738,2]
[346877962,1735337448819,-500.0,0.00010738,2]
[346877963,1735337448830,-331.15414854,0.00010738,2]
[346877964,1735337448839,-500.0,0.00010738,2]
[346877965,1735337448849,-500.0,0.00010738,2]
[346877966,1735337448859,-500.0,0.00010738,2]
[346877967,1735337448869,-500.0,0.00010738,2]
[346877968,1735337448879,-500.0,0.00010738,2]
[346877969,1735337448889,-500.0,0.00010738,2]
[346877970,1735337448899,-500.0,0.00010738,2]
[346877971,1735337448909,-500.0,0.00010738,2]
[346877972,1735337448918,-500.0,0.00010738,2]
[346877973,1735337448928,-500.0,0.00010738,2]
[346877974,1735337448941,-500.0,0.00010738,2]
[346877975,1735337448951,-500.0,0.00010738,2]
[346877976,1735337448961,-500.0,0.00010738,2]
[346877977,1735337448971,-500.0,0.00010738,2]
[346877978,1735337448981,-500.0,0.00010738,2]
[346877979,1735337448992,-500.0,0.00010738,2]
[346877980,1735337449002,-500.0,0.00010738,2]
[346877981,1735337449013,-600.36,0.00010738,2]
[346877982,1735337449023,-387.24286146,0.00010738,2]
[346877983,1735337449034,-500.0,0.00010738,2]
[346877984,1735337449043,-500.0,0.00010738,2]
[346877985,1735337449258,-500.0,0.00010738,2]
[346877986,1735337449269,-500.0,0.00010738,2]
[346877987,1735337449280,-500.0,0.00010738,2]
[346877988,1735337449290,-500.0,0.00010738,2]
[346877989,1735337449300,-500.0,0.00010738,2]
[346877990,1735337449311,-500.0,0.00010738,2]
[346877991,1735337449322,-500.0,0.00010738,2]
[346877992,1735337449333,-500.0,0.00010738,2]
[346877993,1735337449344,-500.0,0.00010738,2]
[346877994,1735337449354,-500.0,0.00010738,2]
[346877995,1735337449364,-500.0,0.00010738,2]
[346877996,1735337449374,-500.0,0.00010738,2]
[346877997,1735337449384,-500.0,0.00010738,2]
[346877998,1735337449395,-500.0,0.00010738,2]
[346877999,1735337449405,-500.0,0.00010738,2]
[346878000,1735337449415,-500.0,0.00010738,2]
[346878001,1735337449425,-500.0,0.00010738,2]
[346878002,1735337449435,-626.84,0.00010738,2]
[346878003,1735337449444,-500.0,0.00010738,2]
[346878004,1735337449455,-500.0,0.00010738,2]
[346878005,1735337449465,-545.19,0.00010738,2]
[346878006,1735337449476,-500.0,0.00010738,2]
[346878007,1735337449486,-577.3,0.00010738,2]
[346878008,1735337449497,-566.86,0.00010738,2]
[346878009,1735337449507,-500.0,0.00010738,2]
[346878010,1735337449517,-500.0,0.00010738,2]
[346878011,1735337449527,-641.35603305,0.00010738,2]
[346878012,1735337449537,-521.44,0.00010738,2]
[346878013,1735337449547,-500.0,0.00010738,2]
[346878014,1735337449557,-500.0,0.00010738,2]
[346878015,1735337449567,-1369.43,0.00010738,2]
[346878016,1735337449577,-500.0,0.00010738,2]
[346878017,1735337449587,-500.0,0.00010738,2]
[346878018,1735337449597,-500.0,0.00010738,2]
[346878019,1735337449608,-500.0,0.00010738,2]
[346878020,1735337449618,-763.16,0.00010738,2]
[346878021,1735337449637,-500.0,0.00010738,2]
[346878022,1735337449648,-500.0,0.00010738,2]
[346878023,1735337449657,-529.15,0.00010738,2]
[346878024,1735337449667,-500.0,0.00010738,2]
[346878025,1735337449678,-500.0,0.00010738,2]
[346878026,1735337449688,-500.0,0.00010738,2]
[346878027,1735337449697,-500.0,0.00010738,2]
[346878028,1735337449707,-500.0,0.00010738,2]
[346878029,1735337449717,-500.0,0.00010738,2]
[346878030,1735337449726,-500.0,0.00010738,2]
[346878031,1735337449736,-500.0,0.00010738,2]
[346878032,1735337449746,-500.0,0.00010738,2]
[346878033,1735337449756,-500.0,0.00010738,2]
[346878034,1735337449766,-500.0,0.00010738,2]
[346878035,1735337449776,-500.0,0.00010738,2]
[346878036,1735337449785,-500.0,0.00010738,2]
[346878037,1735337449795,-500.0,0.00010738,2]
[346878038,1735337449804,-500.0,0.00010738,2]
[346878039,1735337449814,-500.0,0.00010738,2]
[346878040,1735337449823,-7063.05,0.00010738,2]
[346878041,1735337449833,-500.0,0.00010738,2]
[346878042,1735337449843,-500.0,0.00010738,2]
[346878043,1735337449853,-599.942772,0.00010738,2]
[346878044,1735337449863,-500.0,0.00010738,2]
[346878045,1735337449873,-500.0,0.00010738,2]
[346878046,1735337449883,-584.11,0.00010738,2]
[346878047,1735337449892,-462.247913,0.00010738,2]
[346878048,1735337449902,-598.01,0.00010738,2]
[346878049,1735337449911,-500.0,0.00010738,2]
[346878051,1735337449920,-500.0,0.00010738,2]
[346878053,1735337449932,-506.51,0.00010738,2]
[346878055,1735337449943,-500.0,0.00010738,2]
[346878057,1735337449952,-500.0,0.00010738,2]
[346878058,1735337449961,-500.0,0.00010738,2]
[346878060,1735337449971,-500.0,0.00010738,2]
[346878062,1735337449982,-538.65,0.00010738,2]
[346878064,1735337449992,-558.77,0.00010738,2]
[346878066,1735337450002,-707.82,0.00010738,2]
[346878068,1735337450014,-500.0,0.00010738,2]
[346878070,1735337450025,-500.0,0.00010738,2]
[346878072,1735337450034,-532.49,0.00010738,2]
[346878074,1735337450044,-635.02,0.00010738,2]
[346878076,1735337450053,-500.0,0.00010738,2]
[346878078,1735337450062,-541.65,0.00010738,2]
[346878080,1735337450071,-177.25492629,0.00010738,2]
[346878082,1735337450080,-500.0,0.00010738,2]
[346878084,1735337450089,-8.25334119,0.00010738,2]
[346878087,1735337450108,-495.80665881,0.00010738,2]
[346878089,1735337450117,-502.5,0.00010738,2]
[346878091,1735337450126,-500.0,0.00010738,2]
[346878093,1735337450135,-226.59604085,0.00010738,2]
[346878094,1735337450147,-273.40395915,0.00010738,2]
[346878095,1735337450157,-500.0,0.00010738,2]
[346878096,1735337450166,-500.0,0.00010738,2]
[346878097,1735337450176,-500.0,0.00010738,2]
[346878098,1735337450186,-1627.31,0.00010738,2]
[346878099,1735337450196,-738.96,0.00010738,2]
[346878100,1735337450206,-500.0,0.00010738,2]
[346878101,1735337450216,-500.0,0.00010738,2]
[346878102,1735337450226,-500.0,0.00010738,2]
[346878103,1735337450236,-500.0,0.00010738,2]
[346878104,1735337450246,-500.0,0.00010738,2]
[346878105,1735337450255,-500.0,0.00010738,2]
[346878106,1735337450265,-923.42,0.00010738,2]
[346878107,1735337450275,-536.87,0.00010738,2]
[346878108,1735337450285,-500.0,0.00010738,2]
[346878109,1735337450295,-500.0,0.00010738,2]
[346878110,1735337450304,-610.51,0.00010738,2]
[346878112,1735337450314,-500.0,0.00010738,2]
[346878114,1735337450323,-500.0,0.00010738,2]
[346878116,1735337450333,-500.0,0.00010738,2]
[346878118,1735337450343,-500.0,0.00010738,2]
[346878120,1735337450352,-500.0,0.00010738,2]
[346878122,1735337450361,-500.0,0.00010738,2]
[346878124,1735337450371,-669.72,0.00010738,2]
[346878126,1735337450380,-979.53,0.00010738,2]
[346878128,1735337450389,-500.0,0.00010738,2]
[346878130,1735337450399,-500.0,0.00010738,2]
[346878132,1735337450408,-500.0,0.00010738,2]
[346878134,1735337450418,-500.0,0.00010738,2]
[346878136,1735337450427,-666.11,0.00010738,2]
[346878138,1735337450437,-586.82,0.00010738,2]
[346878140,1735337450447,-2542.03,0.00010738,2]
[346878142,1735337450457,-609.27,0.00010738,2]
[346878144,1735337450466,-500.0,0.00010738,2]
[346878146,1735337450476,-730.1,0.00010738,2]
[346878148,1735337450486,-500.0,0.00010738,2]
[346878150,1735337450496,-500.0,0.00010738,2]
[346878152,1735337450506,-500.0,0.00010738,2]
[346878154,1735337450516,-1139.53,0.00010738,2]
[346878156,1735337450525,-5563.28,0.00010738,2]
[346878158,1735337450534,-500.0,0.00010738,2]
[346878159,1735337450544,-591.1,0.00010738,2]
[346878161,1735337450554,-504.61,0.00010738,2]
[346878163,1735337450563,-500.0,0.00010738,2]
[346878165,1735337450573,-1637.97,0.00010738,2]
[346878167,1735337450582,-500.0,0.00010738,2]
[346878169,1735337450592,-500.0,0.00010738,2]
[346878171,1735337450601,-500.0,0.00010738,2]
[346878173,1735337450611,-500.0,0.00010738,2]
[346878175,1735337450621,-606.68,0.00010738,2]
[346878177,1735337450631,-737.15,0.00010738,2]
[346878179,1735337450641,-500.0,0.00010738,2]
[346878182,1735337450651,-500.0,0.00010738,2]
[346878183,1735337450660,-500.0,0.00010738,2]
[346878186,1735337450670,-500.0,0.00010738,2]
[346878188,1735337450679,-500.0,0.00010738,2]
[346878190,1735337450690,-500.0,0.00010738,2]
[346878192,1735337450700,-800.25,0.00010738,2]
[346878194,1735337450710,-1453.41,0.00010738,2]
[346878196,1735337450720,-500.0,0.00010738,2]
[346878198,1735337450730,-652.21,0.00010738,2]
[346878200,1735337450740,-1096.86,0.00010738,2]
[346878202,1735337450749,-500.0,0.00010738,2]
[346878204,1735337450759,-500.0,0.00010738,2]
[346878206,1735337450769,-771.59,0.00010738,2]
[346878208,1735337450778,-500.0,0.00010738,2]
[346878210,1735337450787,-575.96,0.00010738,2]
[346878212,1735337450796,-500.0,0.00010738,2]
[346878214,1735337450806,-728.49,0.00010738,2]
[346878216,1735337450815,-500.0,0.00010738,2]
[346878218,1735337450824,-500.0,0.00010738,2]
[346878220,1735337450833,-821.89,0.00010738,2]
[346878222,1735337450843,-505.04,0.00010738,2]
[346878223,1735337450852,-718.2,0.00010738,2]
[346878225,1735337450861,-500.0,0.00010738,2]
[346878227,1735337450870,-635.05,0.00010738,2]
[346878229,1735337450879,-500.0,0.00010738,2]
[346878231,1735337450889,-500.0,0.00010738,2]
[346878233,1735337450898,-2742.24,0.00010738,2]
[346878235,1735337450908,-512.56,0.00010738,2]
[346878237,1735337450918,-597.12309635,0.00010738,2]
[346878239,1735337450927,-500.0,0.00010738,2]
[346878241,1735337450941,-500.0,0.00010738,2]
[346878243,1735337450950,-696.24,0.00010738,2]
[346878245,1735337450959,-500.0,0.00010738,2]
[346878247,1735337450969,-500.0,0.00010738,2]
[346878249,1735337450978,-281.53972671,0.00010738,2]
[346878251,1735337450988,-500.0,0.00010738,2]
[346878253,1735337450997,-500.0,0.00010738,2]
[346878255,1735337451007,-500.0,0.00010738,2]
[346878258,1735337451016,-1083.85,0.00010738,2]
[346878260,1735337451026,-500.0,0.00010738,2]
[346878261,1735337451036,-585.18764432,0.00010738,2]
[346878264,1735337451046,-500.0,0.00010738,2]
[346878266,1735337451056,-3617.7,0.00010738,2]
[346878268,1735337451065,-500.0,0.00010738,2]
[346878270,1735337451074,-500.0,0.00010738,2]
[346878272,1735337451084,-500.0,0.00010738,2]
[346878274,1735337451092,-797.39,0.00010738,2]
[346878276,1735337451102,-500.0,0.00010738,2]
[346878278,1735337451111,-511.11,0.00010738,2]
[346878280,1735337451120,-500.0,0.00010738,2]
[346878282,1735337451129,-500.0,0.00010739,2]
[346878284,1735337451138,-1671.18,0.00010739,2]
[346878286,1735337451147,-3053.92,0.00010739,2]
[346878288,1735337451156,-995.46,0.00010739,2]
[346878290,1735337451165,-1574.76,0.00010739,2]
[346878292,1735337451175,-500.0,0.00010739,2]
[346878294,1735337451185,-1000.05,0.00010739,2]
[346878296,1735337451194,-1147.77,0.00010739,2]
[346878298,1735337451203,-1046.67,0.00010739,2]
[346878300,1735337451213,-841.93,0.00010739,2]
[346878302,1735337451222,-1344.12,0.00010739,2]
[346878304,1735337451231,-1874.59,0.00010739,2]
[346878305,1735337451241,-2566.56,0.00010739,2]
[346878308,1735337451250,-3215.63,0.00010739,2]
[346878310,1735337451259,-15717.9,0.00010739,2]
[346878311,1735337451269,-2038.82,0.00010739,2]
[346878314,1735337451278,-1185.58,0.00010739,2]
[346878316,1735337451287,-943.05,0.00010739,2]
[346878318,1735337451297,-829.68,0.00010739,2]
[346878319,1735337451306,-1001.03,0.00010739,2]
[346878321,1735337451315,-990.76,0.00010739,2]
[346878323,1735337451324,-500.0,0.00010739,2]
[346878325,1735337451334,-541.5,0.00010739,2]
[346878327,1735337451343,-500.0,0.00010739,2]
[346878329,1735337451353,-715.49,0.00010739,2]
[346878331,1735337451362,-500.0,0.00010739,2]
[346878333,1735337451372,-500.0,0.00010739,2]
[346878336,1735337451381,-1128.33,0.00010739,2]
[346878338,1735337451391,-1546.36,0.00010739,2]
[346878340,1735337451401,-12703.63,0.00010739,2]
[346878342,1735337451410,-500.0,0.00010739,2]
[346878343,1735337451420,-1531.8,0.00010739,2]
[346878345,1735337451429,-1209.43,0.00010739,2]
[346878347,1735337451439,-1230.82,0.00010739,2]
[346878349,1735337451449,-663.36,0.00010739,2]
[346878351,1735337451459,-1032.99,0.00010739,2]
[346878354,1735337451471,-4864.91,0.00010739,2]
[346878356,1735337451480,-2294.48,0.00010739,2]
[346878357,1735337451489,-2365.42,0.00010739,2]
[346878360,1735337451499,-1389.4,0.00010739,2]
[346878362,1735337451508,-2191.15,0.00010739,2]
[346878363,1735337451518,-1447.0,0.00010739,2]
[346878365,1735337451528,-500.0,0.00010739,2]
[346878368,1735337451538,-1000.0,0.00010739,2]
[346878369,1735337451547,-638.58,0.00010739,2]
[346878372,1735337451557,-500.0,0.00010739,2]
[346878374,1735337451567,-476.7,0.00010787,2]
[346878376,1735337451576,-500.0,0.00010792,2]
[346878378,1735337451585,-500.0,0.00010792,2]
[346878379,1735337451594,-500.0,0.00010792,2]
[346878381,1735337451603,-176.81,0.00010847,2]
[346878384,1735337451613,-9600.0,0.00010882,2]
[346878386,1735337451623,-3889.0,0.00010882,2]
[346878388,1735337451632,-150.0,0.00010882,2]
[346878389,1735337451642,-1171.0,0.00010882,2]
[346878398,1735337451708,-209.26861641,0.000109,2]
[346878400,1735337451718,-165.1905704,0.00010911,2]
[346878401,1735337451727,-255.72390353,0.00010912,2]
[346878404,1735337451737,-150.0,0.00010959,2]
[346878406,1735337451747,-1000.0,0.00011005,2]
[346878407,1735337451758,-500.0,0.00011011,2]
[346878410,1735337451768,-637.02,0.00011011,2]
[346878411,1735337451777,-1129.03,0.00011011,2]
[346878413,1735337451787,-7183.04,0.00011011,2]
[346878415,1735337451796,-500.0,0.00011011,2]
[346878417,1735337451805,-696.32,0.00011011,2]
[346878419,1735337451815,-614.82,0.00011011,2]
[346878421,1735337451824,-500.0,0.00011011,2]
[346878423,1735337451833,-3053.31,0.00011011,2]
[346878425,1735337451842,-500.0,0.00011011,2]
[346878427,1735337451851,-1253.84,0.00011011,2]
[346878429,1735337451860,-718.3,0.00011011,2]
[346878431,1735337451868,-500.0,0.00011011,2]
[346878433,1735337451877,-4062.98,0.00011011,2]
[346878435,1735337451886,-500.0,0.00011011,2]
[346878437,1735337451895,-1170.25,0.00011011,2]
[346878440,1735337451905,-1248.32,0.00011011,2]
[346878442,1735337451914,-1298.59,0.00011011,2]
[346878443,1735337451923,-751.3,0.00011011,2]
[346878445,1735337451934,-848.02,0.00011011,2]
[346878447,1735337451944,-1580.69,0.00011011,2]
[346878450,1735337451954,-539.84,0.00011011,2]
[346878452,1735337451963,-918.89,0.00011011,2]
[346878454,1735337451972,-500.0,0.00011011,2]
[346878456,1735337451983,-964.9,0.00011011,2]
[346878458,1735337451993,-524.03,0.00011011,2]
[346878460,1735337452003,-801.09,0.00011011,2]
[346878462,1735337452014,-500.0,0.00011011,2]
[346878464,1735337452024,-660.9,0.00011011,2]
[346878466,1735337452034,-500.0,0.00011011,2]
[346878468,1735337452043,-500.0,0.00011011,2]
[346878470,1735337452052,-500.0,0.00011011,2]
[346878472,1735337452060,-500.0,0.00011011,2]
[346878473,1735337452069,-500.0,0.00011011,2]
[346878475,1735337452079,-949.56,0.00011011,2]
[346878477,1735337452088,-500.0,0.00011011,2]
[346878479,1735337452098,-294.11048592,0.00011012,2]
[346878481,1735337452107,-500.0,0.00011012,2]
[346878483,1735337452116,-500.0,0.00011012,2]
[346878485,1735337452126,-500.0,0.00011012,2]
[346878487,1735337452135,-500.0,0.00011012,2]
[346878489,1735337452144,-500.0,0.00011012,2]
[346878491,1735337452154,-500.0,0.00011012,2]
[346878493,1735337452163,-500.0,0.00011012,2]
[346878495,1735337452172,-500.0,0.00011012,2]
[346878497,1735337452181,-756.82,0.00011012,2]
[346878499,1735337452190,-500.0,0.00011012,2]
[346878500,1735337452199,-500.0,0.00011012,2]
[346878501,1735337452209,-964.3,0.00011012,2]
[346878502,1735337452219,-500.0,0.00011012,2]
[346878503,1735337452228,-500.0,0.00011012,2]
[346878504,1735337452237,-500.0,0.00011012,2]
[346878505,1735337452247,-1057.65,0.00011012,2]
[346878506,1735337452255,-500.0,0.00011012,2]
[346878507,1735337452264,-500.0,0.00011012,2]
[346878508,1735337452273,-500.0,0.00011012,2]
[346878509,1735337452282,-898.76,0.00011012,2]
[346878510,1735337452291,-500.0,0.00011012,2]
[346878511,1735337452301,-500.0,0.00011012,2]
[346878512,1735337452310,-500.0,0.00011012,2]
[346878513,1735337452319,-395.44206019,0.00011012,2]
[346878514,1735337452328,-500.0,0.00011012,2]
[346878515,1735337452337,-1586.4,0.00011012,2]
[346878516,1735337452347,-500.0,0.00011012,2]
[346878517,1735337452357,-500.0,0.00011012,2]
[346878518,1735337452367,-500.0,0.00011012,2]
[346878519,1735337452376,-500.0,0.00011012,2]
[346878520,1735337452387,-500.0,0.00011012,2]
[346878521,1735337452396,-1087.21,0.00011012,2]
[346878522,1735337452405,-500.0,0.00011012,2]
[346878523,1735337452415,-500.0,0.00011012,2]
[346878524,1735337452424,-500.0,0.00011012,2]
[346878525,1735337452433,-500.0,0.00011012,2]
[346878526,1735337452442,-500.0,0.00011012,2]
[346878527,1735337452451,-500.0,0.00011012,2]
[346878528,1735337452460,-500.0,0.00011012,2]
[346878529,1735337452470,-500.0,0.00011012,2]
[346878530,1735337452479,-500.0,0.00011012,2]
[346878531,1735337452488,-4606.94,0.00011012,2]
[346878532,1735337452497,-500.0,0.00011012,2]
[346878533,1735337452507,-500.0,0.00011012,2]
[346878534,1735337452516,-500.0,0.00011012,2]
[346878535,1735337452525,-709.78,0.00011012,2]
[346878536,1735337452535,-500.0,0.00011012,2]
[346878537,1735337452545,-500.0,0.00011012,2]
[346878538,1735337452554,-500.0,0.00011012,2]
[346878539,1735337452563,-500.0,0.00011012,2]
[346878540,1735337452572,-500.0,0.00011012,2]
[346878541,1735337452581,-500.0,0.00011012,2]
[346878542,1735337452590,-521.21,0.00011012,2]
[346878543,1735337452599,-634.51,0.00011012,2]
[346878544,1735337452608,-500.0,0.00011012,2]
[346878545,1735337452618,-3244.22,0.00011012,2]
[346878546,1735337452627,-500.0,0.00011012,2]
[346878547,1735337452636,-500.0,0.00011012,2]
[346878548,1735337452645,-500.0,0.00011012,2]
[346878549,1735337452655,-500.0,0.00011012,2]
[346878550,1735337452664,-500.0,0.00011012,2]
[346878551,1735337452673,-500.0,0.00011012,2]
[346878552,1735337452682,-500.0,0.00011012,2]
[346878553,1735337452691,-500.0,0.00011012,2]
[346878554,1735337452701,-417.64903974,0.00011012,2]
[346878555,1735337452711,-500.0,0.00011012,2]
[346878556,1735337452720,-688.38,0.00011012,2]
[346878557,1735337452732,-500.0,0.00011012,2]
[346878558,1735337452742,-500.0,0.00011012,2]